[Event "Titled Tuesday Blitz May 16 Early 2023"]
[White "Hartikainen, Jarmo"]
[Black "Topalov, Aleksandar"]
[WhiteFideId "503134"]
[BlackFideId "925659"]
[WhiteElo "2090"]
[BlackElo "2151"]
[Result "0-1"]
[Round "03"]
[TimeControl "180+2"]
[Date "2023.05.16"]
[WhiteClock "0:00:00"]
[BlackClock "0:00:43"]

1. e4 {[%clk 0:03:00]}  e6 {[%clk 0:02:56]} 2. d4 {[%clk 0:03:00]}  d5 {[%clk 0:02:56]} 3. Nc3 {[%clk 0:03:01]}  Bb4 {[%clk 0:02:56]} 4. e5 {[%clk 0:03:01]}  Qd7 {[%clk 0:02:55]} 5. a3 {[%clk 0:02:54]}  Bxc3+ {[%clk 0:02:55]} 6. bxc3 {[%clk 0:02:55]}  b6 {[%clk 0:02:55]} 7. Qg4 {[%clk 0:02:51]}  f5 {[%clk 0:02:55]} 8. Qh5+ {[%clk 0:02:41]}  Qf7 {[%clk 0:02:55]} 9. Bb5+ {[%clk 0:02:19]}  c6 {[%clk 0:02:52]} 10. Qxf7+ {[%clk 0:02:17]}  Kxf7 {[%clk 0:02:53]} 11. Bd3 {[%clk 0:02:16]}  Ba6 {[%clk 0:02:53]} 12. Ne2 {[%clk 0:02:16]}  Bc4 {[%clk 0:02:47]} 13. a4 {[%clk 0:02:10]}  Ne7 {[%clk 0:02:40]} 14. Ba3 {[%clk 0:02:09]}  Nd7 {[%clk 0:02:39]} 15. O-O {[%clk 0:01:56]}  Rhc8 {[%clk 0:02:38]} 16. Bxc4 {[%clk 0:01:44]}  dxc4 {[%clk 0:02:37]} 17. Bxe7 {[%clk 0:01:44]}  Kxe7 {[%clk 0:02:38]} 18. f4 {[%clk 0:01:38]}  c5 {[%clk 0:02:26]} 19. Rfd1 {[%clk 0:01:26]}  cxd4 {[%clk 0:02:25]} 20. cxd4 {[%clk 0:01:24]}  Rd8 {[%clk 0:02:22]} 21. Nc3 {[%clk 0:00:52]}  a6 {[%clk 0:02:07]} 22. Rab1 {[%clk 0:00:49]}  Rab8 {[%clk 0:02:06]} 23. d5 {[%clk 0:00:49]}  Nc5 {[%clk 0:02:02]} 24. dxe6 {[%clk 0:00:34]}  Nxe6 {[%clk 0:02:02]} 25. Nd5+ {[%clk 0:00:22]}  Kf7 {[%clk 0:01:59]} 26. g3 {[%clk 0:00:14]}  b5 {[%clk 0:01:59]} 27. axb5 {[%clk 0:00:12]}  axb5 {[%clk 0:01:59]} 28. Kf2 {[%clk 0:00:11]}  Nc5 {[%clk 0:01:54]} 29. Ke2 {[%clk 0:00:10]}  Ne4 {[%clk 0:01:54]} 30. Ke3 {[%clk 0:00:05]}  g6 {[%clk 0:01:36]} 31. Rd4 {[%clk 0:00:05]}  Nc5 {[%clk 0:01:21]} 32. Rb4 {[%clk 0:00:05]}  Ne6 {[%clk 0:01:20]} 33. Rd1 {[%clk 0:00:04]}  Rd7 {[%clk 0:01:14]} 34. Nc3 {[%clk 0:00:04]}  Rxd1 {[%clk 0:01:14]} 35. Nxd1 {[%clk 0:00:04]}  Nc7 {[%clk 0:01:12]} 36. Nc3 {[%clk 0:00:05]}  Ke6 {[%clk 0:01:12]} 37. Kd4 {[%clk 0:00:05]}  Rd8+ {[%clk 0:01:08]} 38. Kc5 {[%clk 0:00:05]}  Na6+ {[%clk 0:01:08]} 39. Kxb5 {[%clk 0:00:05]}  Nxb4 {[%clk 0:01:09]} 40. Kxb4 {[%clk 0:00:06]}  Rd2 {[%clk 0:01:07]} 41. Kxc4 {[%clk 0:00:06]}  Rxc2 {[%clk 0:01:07]} 42. Kd4 {[%clk 0:00:06]}  Rxh2 {[%clk 0:01:07]} 43. Ke3 {[%clk 0:00:05]}  Rg2 {[%clk 0:01:00]} 44. Kf3 {[%clk 0:00:05]}  Rb2 {[%clk 0:00:58]} 45. Ne2 {[%clk 0:00:05]}  Rb3+ {[%clk 0:00:53]} 46. Kf2 {[%clk 0:00:05]}  Kd5 {[%clk 0:00:53]} 47. Kg2 {[%clk 0:00:04]}  Ke4 {[%clk 0:00:49]} 48. e6 {[%clk 0:00:00]}  Rb6 {[%clk 0:00:43]} 0-1


[Site "https://www.chess.com"]

[Event "Titled Tuesday Blitz May 16 Early 2023"]
[White "drdaro"]
[Black "Lohani, Sujana"]
[BlackFideId "12311987"]
[WhiteElo "2337"]
[BlackElo "1718"]
[Result "1-0"]
[Round "03"]
[TimeControl "180+2"]
[Date "2023.05.16"]
[WhiteClock "0:00:46"]
[BlackClock "0:00:00"]

1. Nc3 {[%clk 0:02:58]}  g6 {[%clk 0:01:47]} 2. h4 {[%clk 0:02:55]}  h5 {[%clk 0:01:45]} 3. e4 {[%clk 0:02:48]}  Bg7 {[%clk 0:01:46]} 4. d3 {[%clk 0:02:45]}  c6 {[%clk 0:01:43]} 5. Be2 {[%clk 0:02:43]}  d5 {[%clk 0:01:39]} 6. Nf3 {[%clk 0:02:43]}  Nf6 {[%clk 0:01:36]} 7. Bg5 {[%clk 0:02:42]}  O-O {[%clk 0:01:33]} 8. Qd2 {[%clk 0:02:37]}  dxe4 {[%clk 0:01:33]} 9. dxe4 {[%clk 0:02:21]}  Qb6 {[%clk 0:01:20]} 10. O-O-O {[%clk 0:02:19]}  Nxe4 {[%clk 0:01:17]} 11. Qe3 {[%clk 0:02:11]}  Qxe3+ {[%clk 0:01:12]} 12. fxe3 {[%clk 0:02:10]}  Nxc3 {[%clk 0:01:10]} 13. bxc3 {[%clk 0:02:10]}  Re8 {[%clk 0:00:56]} 14. Kb2 {[%clk 0:01:59]}  Bg4 {[%clk 0:00:50]} 15. Bc4 {[%clk 0:01:41]}  Nd7 {[%clk 0:00:47]} 16. Bf4 {[%clk 0:01:34]}  Nc5 {[%clk 0:00:37]} 17. Ng5 {[%clk 0:01:31]}  e6 {[%clk 0:00:26]} 18. Rdf1 {[%clk 0:01:25]}  Na4+ {[%clk 0:00:21]} 19. Kb3 {[%clk 0:01:24]}  Nxc3 {[%clk 0:00:20]} 20. Bd6 {[%clk 0:01:20]}  f6 {[%clk 0:00:16]} 21. Kxc3 {[%clk 0:01:12]}  fxg5+ {[%clk 0:00:15]} 22. Kb3 {[%clk 0:01:13]}  gxh4 {[%clk 0:00:15]} 23. Rf4 {[%clk 0:01:08]}  b5 {[%clk 0:00:14]} 24. Bd3 {[%clk 0:01:08]}  e5 {[%clk 0:00:13]} 25. Rf2 {[%clk 0:01:06]}  e4 {[%clk 0:00:11]} 26. Be2 {[%clk 0:01:02]}  Be6+ {[%clk 0:00:10]} 27. c4 {[%clk 0:00:59]}  Rad8 {[%clk 0:00:09]} 28. Bb4 {[%clk 0:00:53]}  bxc4+ {[%clk 0:00:07]} 29. Kc2 {[%clk 0:00:54]}  Rd3 {[%clk 0:00:05]} 30. Bxd3 {[%clk 0:00:52]}  cxd3+ {[%clk 0:00:05]} 31. Kd2 {[%clk 0:00:52]}  Bxa2 {[%clk 0:00:05]} 32. Rc1 {[%clk 0:00:51]}  Bd5 {[%clk 0:00:06]} 33. Bc3 {[%clk 0:00:51]}  Rb8 {[%clk 0:00:05]} 34. Rff1 {[%clk 0:00:47]}  Bxc3+ {[%clk 0:00:03]} 35. Kxc3 {[%clk 0:00:48]}  Rb3+ {[%clk 0:00:01]} 36. Kd4 {[%clk 0:00:46]}  Kg7 {[%clk 0:00:00]} 37. Ra1 {[%clk 0:00:46]} 1-0


[Site "https://www.chess.com"]

[Event "Titled Tuesday Blitz May 16 Early 2023"]
[White "Firouzja, Alireza"]
[Black "Zakhartsov, Vladimir"]
[WhiteFideId "12573981"]
[BlackFideId "4145097"]
[WhiteElo "2904"]
[BlackElo "2495"]
[Result "0-1"]
[Round "04"]
[TimeControl "180+2"]
[Date "2023.05.16"]
[WhiteClock "0:00:02"]
[BlackClock "0:00:05"]

1. d4 {[%clk 0:02:59]}  Nf6 {[%clk 0:02:54]} 2. c4 {[%clk 0:02:55]}  e6 {[%clk 0:02:54]} 3. Nf3 {[%clk 0:02:53]}  d5 {[%clk 0:02:54]} 4. Bg5 {[%clk 0:02:53]}  Be7 {[%clk 0:02:50]} 5. e3 {[%clk 0:02:50]}  O-O {[%clk 0:02:49]} 6. Qc2 {[%clk 0:02:50]}  Nbd7 {[%clk 0:02:49]} 7. cxd5 {[%clk 0:02:44]}  exd5 {[%clk 0:02:44]} 8. Nc3 {[%clk 0:02:43]}  c6 {[%clk 0:02:41]} 9. Bd3 {[%clk 0:02:42]}  Re8 {[%clk 0:02:42]} 10. h3 {[%clk 0:02:32]}  Nf8 {[%clk 0:02:41]} 11. Bf4 {[%clk 0:02:30]}  Ne6 {[%clk 0:02:03]} 12. Be5 {[%clk 0:02:20]}  g6 {[%clk 0:02:01]} 13. O-O {[%clk 0:02:16]}  Ng7 {[%clk 0:02:00]} 14. Rab1 {[%clk 0:01:36]}  a5 {[%clk 0:01:56]} 15. Qb3 {[%clk 0:01:31]}  Ra7 {[%clk 0:01:47]} 16. Rbc1 {[%clk 0:01:17]}  Bf5 {[%clk 0:01:45]} 17. Be2 {[%clk 0:01:00]}  Nd7 {[%clk 0:01:35]} 18. Bg3 {[%clk 0:01:00]}  Qb6 {[%clk 0:01:33]} 19. Qxb6 {[%clk 0:00:53]}  Nxb6 {[%clk 0:01:33]} 20. Ne5 {[%clk 0:00:54]}  Nd7 {[%clk 0:01:27]} 21. Nxd7 {[%clk 0:00:51]}  Bxd7 {[%clk 0:01:28]} 22. Na4 {[%clk 0:00:49]}  Nf5 {[%clk 0:01:14]} 23. Bh2 {[%clk 0:00:49]}  Bd8 {[%clk 0:01:03]} 24. Nc5 {[%clk 0:00:46]}  Bc8 {[%clk 0:01:02]} 25. Bd3 {[%clk 0:00:45]}  Be7 {[%clk 0:00:53]} 26. Rfe1 {[%clk 0:00:45]}  Bd6 {[%clk 0:00:44]} 27. Bxd6 {[%clk 0:00:45]}  Nxd6 {[%clk 0:00:44]} 28. f3 {[%clk 0:00:46]}  Be6 {[%clk 0:00:35]} 29. b3 {[%clk 0:00:44]}  Nf5 {[%clk 0:00:24]} 30. Nxe6 {[%clk 0:00:37]}  fxe6 {[%clk 0:00:24]} 31. Kf2 {[%clk 0:00:36]}  Nd6 {[%clk 0:00:22]} 32. e4 {[%clk 0:00:35]}  Kf7 {[%clk 0:00:22]} 33. g4 {[%clk 0:00:30]}  a4 {[%clk 0:00:21]} 34. e5 {[%clk 0:00:28]}  Nc8 {[%clk 0:00:18]} 35. b4 {[%clk 0:00:28]}  Ne7 {[%clk 0:00:16]} 36. b5 {[%clk 0:00:25]}  a3 {[%clk 0:00:16]} 37. Rc3 {[%clk 0:00:23]}  Ra4 {[%clk 0:00:16]} 38. Ke3 {[%clk 0:00:24]}  Rea8 {[%clk 0:00:15]} 39. Rb1 {[%clk 0:00:23]}  R8a7 {[%clk 0:00:14]} 40. h4 {[%clk 0:00:20]}  Ke8 {[%clk 0:00:13]} 41. bxc6 {[%clk 0:00:17]}  bxc6 {[%clk 0:00:12]} 42. h5 {[%clk 0:00:16]}  Kf7 {[%clk 0:00:12]} 43. h6 {[%clk 0:00:15]}  Rc7 {[%clk 0:00:09]} 44. Rbc1 {[%clk 0:00:12]}  Rb7 {[%clk 0:00:08]} 45. R1c2 {[%clk 0:00:12]}  Rbb4 {[%clk 0:00:08]} 46. Rb3 {[%clk 0:00:08]}  Rxb3 {[%clk 0:00:07]} 47. axb3 {[%clk 0:00:09]}  a2 {[%clk 0:00:08]} 48. bxa4 {[%clk 0:00:05]}  a1=Q {[%clk 0:00:08]} 49. f4 {[%clk 0:00:06]}  Qxa4 {[%clk 0:00:06]} 50. Rb2 {[%clk 0:00:07]}  Qa7 {[%clk 0:00:05]} 51. Rc2 {[%clk 0:00:07]}  Qb6 {[%clk 0:00:05]} 52. Rc3 {[%clk 0:00:06]}  Qb4 {[%clk 0:00:05]} 53. Rc2 {[%clk 0:00:05]}  Qe1+ {[%clk 0:00:05]} 54. Kf3 {[%clk 0:00:05]}  Qh1+ {[%clk 0:00:05]} 55. Ke3 {[%clk 0:00:02]}  Qg1+ {[%clk 0:00:05]} 0-1


[Site "https://www.chess.com"]

[Event "Titled Tuesday Blitz May 16 Early 2023"]
[White "Bharath Subramaniyam H"]
[Black "Mamedyarov, Shakhriyar"]
[WhiteFideId "46634827"]
[BlackFideId "13401319"]
[WhiteElo "2400"]
[BlackElo "2704"]
[Result "0-1"]
[Round "04"]
[TimeControl "180+2"]
[Date "2023.05.16"]
[WhiteClock "0:00:00"]
[BlackClock "0:00:05"]

1. c4 {[%clk 0:02:56]}  Nf6 {[%clk 0:02:55]} 2. Nc3 {[%clk 0:02:55]}  e5 {[%clk 0:02:55]} 3. Nf3 {[%clk 0:02:55]}  Nc6 {[%clk 0:02:55]} 4. e3 {[%clk 0:02:53]}  Bb4 {[%clk 0:02:46]} 5. Qc2 {[%clk 0:02:54]}  d6 {[%clk 0:02:38]} 6. Be2 {[%clk 0:02:48]}  O-O {[%clk 0:02:37]} 7. O-O {[%clk 0:02:46]}  h6 {[%clk 0:02:31]} 8. d4 {[%clk 0:02:39]}  exd4 {[%clk 0:02:29]} 9. exd4 {[%clk 0:02:35]}  Re8 {[%clk 0:02:28]} 10. h3 {[%clk 0:02:28]}  d5 {[%clk 0:02:11]} 11. c5 {[%clk 0:02:16]}  Bxc3 {[%clk 0:02:01]} 12. bxc3 {[%clk 0:02:15]}  Bf5 {[%clk 0:01:56]} 13. Qxf5 {[%clk 0:02:03]}  Rxe2 {[%clk 0:01:55]} 14. Be3 {[%clk 0:02:02]}  Ne4 {[%clk 0:01:47]} 15. c4 {[%clk 0:01:58]}  Ne7 {[%clk 0:01:43]} 16. Qe5 {[%clk 0:01:52]}  c6 {[%clk 0:01:32]} 17. cxd5 {[%clk 0:01:38]}  cxd5 {[%clk 0:01:33]} 18. Rfe1 {[%clk 0:01:32]}  Nc6 {[%clk 0:01:27]} 19. Qf5 {[%clk 0:01:30]}  Rb2 {[%clk 0:01:06]} 20. Reb1 {[%clk 0:01:07]}  Rxb1+ {[%clk 0:01:06]} 21. Rxb1 {[%clk 0:01:08]}  b6 {[%clk 0:01:06]} 22. Rc1 {[%clk 0:00:46]}  Ne7 {[%clk 0:00:51]} 23. Qe5 {[%clk 0:00:44]}  Rc8 {[%clk 0:00:49]} 24. Nd2 {[%clk 0:00:27]}  Nc6 {[%clk 0:00:46]} 25. Qf4 {[%clk 0:00:27]}  Nf6 {[%clk 0:00:32]} 26. Qf5 {[%clk 0:00:23]}  Ne7 {[%clk 0:00:31]} 27. Qd3 {[%clk 0:00:22]}  Qd7 {[%clk 0:00:29]} 28. Qa6 {[%clk 0:00:20]}  Nf5 {[%clk 0:00:28]} 29. Nf3 {[%clk 0:00:19]}  Nxe3 {[%clk 0:00:28]} 30. fxe3 {[%clk 0:00:20]}  bxc5 {[%clk 0:00:27]} 31. dxc5 {[%clk 0:00:13]}  Qe8 {[%clk 0:00:19]} 32. Qd3 {[%clk 0:00:10]}  Ne4 {[%clk 0:00:18]} 33. Qxd5 {[%clk 0:00:09]}  Nxc5 {[%clk 0:00:18]} 34. Qd4 {[%clk 0:00:05]}  Qf8 {[%clk 0:00:07]} 35. Ne5 {[%clk 0:00:04]}  a6 {[%clk 0:00:06]} 36. Qc3 {[%clk 0:00:03]}  Rc7 {[%clk 0:00:05]} 37. Qa5 {[%clk 0:00:02]}  Qe7 {[%clk 0:00:05]} 38. Nc4 {[%clk 0:00:02]}  Ne6 {[%clk 0:00:05]} 39. Qd2 {[%clk 0:00:01]}  Qc5 {[%clk 0:00:05]} 40. Rc2 {[%clk 0:00:00]}  Qb5 {[%clk 0:00:05]} 0-1


[Site "https://www.chess.com"]

[Event "Titled Tuesday Blitz May 16 Early 2023"]
[White "Sychev, Klementy"]
[Black "Andreikin, Dmitry"]
[WhiteFideId "4114060"]
[BlackFideId "4158814"]
[WhiteElo "2583"]
[BlackElo "2736"]
[Result "1/2-1/2"]
[Round "04"]
[TimeControl "180+2"]
[Date "2023.05.16"]
[WhiteClock "0:00:03"]
[BlackClock "0:00:20"]

1. e4 {[%clk 0:03:00]}  e6 {[%clk 0:02:52]} 2. d4 {[%clk 0:02:51]}  d5 {[%clk 0:02:52]} 3. e5 {[%clk 0:02:48]}  c5 {[%clk 0:02:49]} 4. c3 {[%clk 0:02:48]}  Nc6 {[%clk 0:02:45]} 5. Nf3 {[%clk 0:02:49]}  Qb6 {[%clk 0:02:45]} 6. Bd3 {[%clk 0:02:47]}  Bd7 {[%clk 0:02:41]} 7. dxc5 {[%clk 0:02:46]}  Qc7 {[%clk 0:02:41]} 8. O-O {[%clk 0:02:41]}  Nxe5 {[%clk 0:02:37]} 9. Nxe5 {[%clk 0:02:35]}  Qxe5 {[%clk 0:02:38]} 10. b4 {[%clk 0:02:35]}  a5 {[%clk 0:02:22]} 11. Re1 {[%clk 0:02:32]}  Qf6 {[%clk 0:02:22]} 12. Be3 {[%clk 0:01:33]}  Ne7 {[%clk 0:02:04]} 13. Na3 {[%clk 0:01:08]}  Qxc3 {[%clk 0:01:47]} 14. Nb5 {[%clk 0:01:03]}  Bxb5 {[%clk 0:01:47]} 15. Bxb5+ {[%clk 0:01:04]}  Nc6 {[%clk 0:01:48]} 16. Bd4 {[%clk 0:00:59]}  Qxb4 {[%clk 0:01:15]} 17. Rb1 {[%clk 0:00:58]}  Qa3 {[%clk 0:01:14]} 18. Re3 {[%clk 0:00:52]}  Qxa2 {[%clk 0:01:14]} 19. Ra1 {[%clk 0:00:51]}  Qxa1 {[%clk 0:01:11]} 20. Qxa1 {[%clk 0:00:50]}  Be7 {[%clk 0:01:09]} 21. Bxg7 {[%clk 0:00:44]}  Rg8 {[%clk 0:01:10]} 22. Bd4 {[%clk 0:00:29]}  a4 {[%clk 0:01:04]} 23. Bxa4 {[%clk 0:00:25]}  Kf8 {[%clk 0:01:00]} 24. Ra3 {[%clk 0:00:17]}  Nxd4 {[%clk 0:00:48]} 25. Qxd4 {[%clk 0:00:17]}  b5 {[%clk 0:00:49]} 26. cxb6 {[%clk 0:00:09]}  Bxa3 {[%clk 0:00:48]} 27. Bc6 {[%clk 0:00:06]}  Ra6 {[%clk 0:00:30]} 28. b7 {[%clk 0:00:05]}  Bd6 {[%clk 0:00:30]} 29. Ba4 {[%clk 0:00:04]}  Ke7 {[%clk 0:00:25]} 30. g3 {[%clk 0:00:04]}  Rb8 {[%clk 0:00:26]} 31. Qh4+ {[%clk 0:00:04]}  Kf8 {[%clk 0:00:26]} 32. Bd7 {[%clk 0:00:03]}  Rxb7 {[%clk 0:00:23]} 33. Qd8+ {[%clk 0:00:03]}  Kg7 {[%clk 0:00:23]} 34. Qg5+ {[%clk 0:00:03]}  Kf8 {[%clk 0:00:24]} 35. Bc8 {[%clk 0:00:02]}  Rb1+ {[%clk 0:00:17]} 36. Kg2 {[%clk 0:00:03]}  Rab6 {[%clk 0:00:18]} 37. Qd8+ {[%clk 0:00:03]}  Kg7 {[%clk 0:00:18]} 38. Qg5+ {[%clk 0:00:03]}  Kf8 {[%clk 0:00:19]} 39. Qd8+ {[%clk 0:00:03]}  Kg7 {[%clk 0:00:19]} 40. Qg5+ {[%clk 0:00:03]}  Kf8 {[%clk 0:00:20]} 1/2-1/2


[Site "https://www.chess.com"]

[Event "Titled Tuesday Blitz May 16 Early 2023"]
[White "Makarian, Rudik"]
[Black "Lobanov, Sergei"]
[WhiteFideId "44105681"]
[BlackFideId "24183750"]
[WhiteElo "2461"]
[BlackElo "2501"]
[Result "0-1"]
[Round "04"]
[TimeControl "180+2"]
[Date "2023.05.16"]
[WhiteClock "0:00:01"]
[BlackClock "0:00:12"]

1. d4 {[%clk 0:03:00]}  Nf6 {[%clk 0:03:00]} 2. c4 {[%clk 0:03:01]}  e6 {[%clk 0:03:00]} 3. Nf3 {[%clk 0:03:02]}  d5 {[%clk 0:03:01]} 4. Nc3 {[%clk 0:03:00]}  Bb4 {[%clk 0:03:00]} 5. Qa4+ {[%clk 0:03:00]}  Nc6 {[%clk 0:03:00]} 6. Bd2 {[%clk 0:03:01]}  O-O {[%clk 0:02:59]} 7. a3 {[%clk 0:03:01]}  Bxc3 {[%clk 0:02:57]} 8. Bxc3 {[%clk 0:03:02]}  Ne4 {[%clk 0:02:56]} 9. e3 {[%clk 0:03:00]}  Re8 {[%clk 0:02:51]} 10. Qc2 {[%clk 0:02:55]}  Qf6 {[%clk 0:02:41]} 11. Rc1 {[%clk 0:02:36]}  h6 {[%clk 0:02:21]} 12. Bd3 {[%clk 0:02:29]}  Nxc3 {[%clk 0:02:16]} 13. Qxc3 {[%clk 0:02:29]}  dxc4 {[%clk 0:01:53]} 14. Bxc4 {[%clk 0:02:18]}  e5 {[%clk 0:01:52]} 15. d5 {[%clk 0:02:08]}  Nd4 {[%clk 0:01:29]} 16. Nd2 {[%clk 0:01:44]}  Qg6 {[%clk 0:01:25]} 17. Kf1 {[%clk 0:01:29]}  Nf5 {[%clk 0:01:08]} 18. Bd3 {[%clk 0:01:29]}  Bd7 {[%clk 0:01:08]} 19. h3 {[%clk 0:01:14]}  h5 {[%clk 0:01:05]} 20. Kg1 {[%clk 0:00:51]}  c6 {[%clk 0:01:03]} 21. Kh2 {[%clk 0:00:22]}  cxd5 {[%clk 0:01:03]} 22. Qb3 {[%clk 0:00:23]}  Bc6 {[%clk 0:01:01]} 23. Rhg1 {[%clk 0:00:17]}  e4 {[%clk 0:01:01]} 24. Be2 {[%clk 0:00:15]}  d4 {[%clk 0:00:33]} 25. exd4 {[%clk 0:00:15]}  e3 {[%clk 0:00:24]} 26. Rxc6 {[%clk 0:00:05]}  bxc6 {[%clk 0:00:20]} 27. fxe3 {[%clk 0:00:06]}  Rxe3 {[%clk 0:00:20]} 28. Qc4 {[%clk 0:00:05]}  Qd6+ {[%clk 0:00:16]} 29. g3 {[%clk 0:00:02]}  Nxg3 {[%clk 0:00:13]} 30. Bf3 {[%clk 0:00:01]}  Nf1+ {[%clk 0:00:12]} 0-1


[Site "https://www.chess.com"]

[Event "Titled Tuesday Blitz May 16 Early 2023"]
[White "Tabatabaei, M. Amin"]
[Black "Kravtsiv, Martyn"]
[WhiteFideId "12521213"]
[BlackFideId "14113147"]
[WhiteElo "2575"]
[BlackElo "2695"]
[Result "1-0"]
[Round "04"]
[TimeControl "180+2"]
[Date "2023.05.16"]
[WhiteClock "0:00:03"]
[BlackClock "0:00:00"]

1. c4 {[%clk 0:03:00]}  e6 {[%clk 0:02:59]} 2. g3 {[%clk 0:02:59]}  d5 {[%clk 0:02:59]} 3. Bg2 {[%clk 0:03:00]}  Nf6 {[%clk 0:02:59]} 4. Nf3 {[%clk 0:02:59]}  Be7 {[%clk 0:02:58]} 5. O-O {[%clk 0:02:59]}  O-O {[%clk 0:02:59]} 6. b3 {[%clk 0:03:00]}  b6 {[%clk 0:02:56]} 7. Bb2 {[%clk 0:02:59]}  Bb7 {[%clk 0:02:56]} 8. d4 {[%clk 0:02:58]}  dxc4 {[%clk 0:02:55]} 9. bxc4 {[%clk 0:02:58]}  c5 {[%clk 0:02:55]} 10. d5 {[%clk 0:02:46]}  exd5 {[%clk 0:02:54]} 11. Nh4 {[%clk 0:02:47]}  Qd7 {[%clk 0:02:17]} 12. cxd5 {[%clk 0:01:54]}  Nxd5 {[%clk 0:02:16]} 13. e4 {[%clk 0:01:54]}  Bf6 {[%clk 0:01:46]} 14. e5 {[%clk 0:01:00]}  Bxh4 {[%clk 0:01:43]} 15. gxh4 {[%clk 0:01:01]}  Rd8 {[%clk 0:01:36]} 16. h5 {[%clk 0:00:59]}  Nf4 {[%clk 0:01:26]} 17. Qxd7 {[%clk 0:00:59]}  Rxd7 {[%clk 0:01:27]} 18. Bxb7 {[%clk 0:00:54]}  Rxb7 {[%clk 0:01:28]} 19. h6 {[%clk 0:00:55]}  Nc6 {[%clk 0:01:02]} 20. hxg7 {[%clk 0:00:42]}  Re7 {[%clk 0:00:59]} 21. Nd2 {[%clk 0:00:34]}  Nxe5 {[%clk 0:00:53]} 22. Kh1 {[%clk 0:00:35]}  f6 {[%clk 0:00:32]} 23. Ne4 {[%clk 0:00:33]}  Kxg7 {[%clk 0:00:32]} 24. Nd6 {[%clk 0:00:28]}  Kh8 {[%clk 0:00:23]} 25. Rad1 {[%clk 0:00:23]}  Rg8 {[%clk 0:00:18]} 26. Nf5 {[%clk 0:00:20]}  Re6 {[%clk 0:00:18]} 27. Rfe1 {[%clk 0:00:19]}  Nfd3 {[%clk 0:00:17]} 28. Re2 {[%clk 0:00:18]}  Nxb2 {[%clk 0:00:15]} 29. Rxb2 {[%clk 0:00:19]}  Nf3 {[%clk 0:00:11]} 30. Rb3 {[%clk 0:00:14]}  Nd4 {[%clk 0:00:08]} 31. Nxd4 {[%clk 0:00:12]}  cxd4 {[%clk 0:00:09]} 32. Rbd3 {[%clk 0:00:09]}  Re2 {[%clk 0:00:08]} 33. Rf3 {[%clk 0:00:08]}  Rg6 {[%clk 0:00:08]} 34. h3 {[%clk 0:00:07]}  Rxa2 {[%clk 0:00:07]} 35. Rxd4 {[%clk 0:00:08]}  Re2 {[%clk 0:00:06]} 36. Rd8+ {[%clk 0:00:07]}  Kg7 {[%clk 0:00:06]} 37. Rd7+ {[%clk 0:00:08]}  Kh6 {[%clk 0:00:07]} 38. Rxa7 {[%clk 0:00:08]}  Rc2 {[%clk 0:00:03]} 39. Rb7 {[%clk 0:00:07]}  Rc1+ {[%clk 0:00:03]} 40. Kh2 {[%clk 0:00:07]}  Rcg1 {[%clk 0:00:03]} 41. h4 {[%clk 0:00:03]}  R1g2+ {[%clk 0:00:02]} 42. Kh3 {[%clk 0:00:03]}  Rg1 {[%clk 0:00:03]} 43. Kh2 {[%clk 0:00:02]}  R1g4 {[%clk 0:00:03]} 44. Kh3 {[%clk 0:00:01]}  Rb4 {[%clk 0:00:03]} 45. Rb8 {[%clk 0:00:01]}  Rb1 {[%clk 0:00:02]} 46. Kh2 {[%clk 0:00:02]}  b5 {[%clk 0:00:02]} 47. Rb6 {[%clk 0:00:02]}  Rb4 {[%clk 0:00:03]} 48. Kh3 {[%clk 0:00:02]}  Rb1 {[%clk 0:00:03]} 49. Kh2 {[%clk 0:00:02]}  Rb4 {[%clk 0:00:01]} 50. Kh3 {[%clk 0:00:03]}  Rb1 {[%clk 0:00:00]} 51. Rg3 {[%clk 0:00:03]} 1-0


[Site "https://www.chess.com"]

[Event "Titled Tuesday Blitz May 16 Early 2023"]
[White "Fernandez Guillen, Ernesto J."]
[Black "Le, Tuan Minh"]
[WhiteFideId "3512428"]
[BlackFideId "12401153"]
[WhiteElo "2429"]
[BlackElo "2566"]
[Result "0-1"]
[Round "04"]
[TimeControl "180+2"]
[Date "2023.05.16"]
[WhiteClock "0:00:04"]
[BlackClock "0:00:19"]

1. e4 {[%clk 0:02:54]}  c5 {[%clk 0:03:00]} 2. Nf3 {[%clk 0:02:45]}  Nf6 {[%clk 0:02:59]} 3. e5 {[%clk 0:02:43]}  Nd5 {[%clk 0:02:59]} 4. Nc3 {[%clk 0:02:44]}  Nxc3 {[%clk 0:02:59]} 5. dxc3 {[%clk 0:02:45]}  Nc6 {[%clk 0:02:59]} 6. Bf4 {[%clk 0:02:40]}  e6 {[%clk 0:02:59]} 7. Qd2 {[%clk 0:02:31]}  h6 {[%clk 0:02:53]} 8. O-O-O {[%clk 0:02:28]}  Qc7 {[%clk 0:02:52]} 9. h4 {[%clk 0:02:25]}  b6 {[%clk 0:02:51]} 10. Qe3 {[%clk 0:02:10]}  Bb7 {[%clk 0:02:48]} 11. Nd2 {[%clk 0:02:11]}  Ne7 {[%clk 0:02:24]} 12. Nc4 {[%clk 0:01:24]}  Nd5 {[%clk 0:02:23]} 13. Qg3 {[%clk 0:01:24]}  O-O-O {[%clk 0:02:23]} 14. Nd6+ {[%clk 0:01:23]}  Bxd6 {[%clk 0:02:22]} 15. exd6 {[%clk 0:01:23]}  Qc6 {[%clk 0:02:22]} 16. c4 {[%clk 0:01:20]}  Nxf4 {[%clk 0:02:18]} 17. Qxf4 {[%clk 0:01:21]}  f6 {[%clk 0:01:59]} 18. Qg3 {[%clk 0:01:16]}  g5 {[%clk 0:01:56]} 19. f3 {[%clk 0:01:12]}  Kb8 {[%clk 0:01:39]} 20. Bd3 {[%clk 0:01:00]}  Qc8 {[%clk 0:01:39]} 21. a3 {[%clk 0:00:56]}  Rdg8 {[%clk 0:01:37]} 22. Rd2 {[%clk 0:00:31]}  Qf8 {[%clk 0:01:35]} 23. h5 {[%clk 0:00:30]}  f5 {[%clk 0:01:33]} 24. Qe5 {[%clk 0:00:29]}  Qg7 {[%clk 0:01:33]} 25. Re1 {[%clk 0:00:28]}  g4 {[%clk 0:01:23]} 26. f4 {[%clk 0:00:22]}  g3 {[%clk 0:01:23]} 27. b4 {[%clk 0:00:20]}  Qxe5 {[%clk 0:01:18]} 28. fxe5 {[%clk 0:00:19]}  Rg4 {[%clk 0:01:17]} 29. bxc5 {[%clk 0:00:18]}  bxc5 {[%clk 0:01:17]} 30. Kb2 {[%clk 0:00:18]}  a6 {[%clk 0:01:16]} 31. Kc3 {[%clk 0:00:18]}  Ka7 {[%clk 0:01:16]} 32. Ree2 {[%clk 0:00:12]}  Rh4 {[%clk 0:01:15]} 33. Rd1 {[%clk 0:00:11]}  Rxh5 {[%clk 0:01:15]} 34. Rb1 {[%clk 0:00:12]}  Bc6 {[%clk 0:01:15]} 35. a4 {[%clk 0:00:11]}  Rb8 {[%clk 0:01:12]} 36. Rxb8 {[%clk 0:00:10]}  Kxb8 {[%clk 0:01:13]} 37. a5 {[%clk 0:00:11]}  Rh2 {[%clk 0:01:13]} 38. Re1 {[%clk 0:00:06]}  h5 {[%clk 0:01:08]} 39. Rb1+ {[%clk 0:00:07]}  Ka7 {[%clk 0:01:08]} 40. Rb6 {[%clk 0:00:08]}  Bxg2 {[%clk 0:01:07]} 41. Bxf5 {[%clk 0:00:07]}  Bb7 {[%clk 0:00:18]} 42. Bxe6 {[%clk 0:00:07]}  g2 {[%clk 0:00:19]} 43. Bd5 {[%clk 0:00:04]}  Bxd5 {[%clk 0:00:18]} 44. cxd5 {[%clk 0:00:05]}  g1=Q {[%clk 0:00:19]} 45. e6 {[%clk 0:00:04]}  Qd4+ {[%clk 0:00:19]} 0-1


[Site "https://www.chess.com"]